[Event "Betsys MČR v online bleskovém šachu 2021"]
[Site "Chess.com"]
[Date "2021.04.17"]
[Round "10"]
[White "valid88"]
[Black "pohoda1966"]
[Result "1/2-1/2"]
[WhiteElo "1375"]
[BlackElo "1721"]
[TimeControl "180+1"]
[EndTime "10:40:34 PDT"]
[Termination "Remíza opakováním pozice"]

1. d4 {[%clk 0:03:00.9]} 1... d5 {[%clk 0:02:56.1]} 2. c4 {[%clk 0:02:57.7]}
2... c6 {[%clk 0:02:55.5]} 3. Nc3 {[%clk 0:02:57.2]} 3... Nf6 {[%clk 0:02:55.4]}
4. e3 {[%clk 0:02:57.3]} 4... e6 {[%clk 0:02:52.6]} 5. Nf3 {[%clk 0:02:57.2]}
5... a6 {[%clk 0:02:52.6]} 6. Bd3 {[%clk 0:02:48.2]} 6... dxc4 {[%clk
0:02:51.9]} 7. Bxc4 {[%clk 0:02:47.7]} 7... b5 {[%clk 0:02:50.5]} 8. Bb3 {[%clk
0:02:47.2]} 8... Bb7 {[%clk 0:02:48.8]} 9. Bd2 {[%clk 0:02:46.7]} 9... Nbd7
{[%clk 0:02:47.8]} 10. O-O {[%clk 0:02:47.3]} 10... c5 {[%clk 0:02:47.3]} 11.
dxc5 {[%clk 0:02:46]} 11... Bxc5 {[%clk 0:02:46.4]} 12. Ne2 {[%clk 0:02:43.6]}
12... Bxf3 {[%clk 0:02:40.2]} 13. gxf3 {[%clk 0:02:42.9]} 13... O-O {[%clk
0:02:38.1]} 14. Ng3 {[%clk 0:02:42.2]} 14... Ne5 {[%clk 0:02:34.7]} 15. Bc3
{[%clk 0:02:41]} 15... Qc7 {[%clk 0:02:14.3]} 16. f4 {[%clk 0:02:36.6]} 16...
Nc4 {[%clk 0:02:07.8]} 17. Bxf6 {[%clk 0:02:35.3]} 17... gxf6 {[%clk 0:02:02]}
18. Qg4+ {[%clk 0:02:29.4]} 18... Kh8 {[%clk 0:01:59.5]} 19. Qh3 {[%clk
0:02:24.2]} 19... Rg8 {[%clk 0:01:55]} 20. Bc2 {[%clk 0:02:22.3]} 20... f5
{[%clk 0:01:52.8]} 21. Kh1 {[%clk 0:02:21.3]} 21... Qb7+ {[%clk 0:01:40.4]} 22.
f3 {[%clk 0:02:18.6]} 22... Nd2 {[%clk 0:01:36.4]} 23. Nxf5 {[%clk 0:02:02.2]}
23... exf5 {[%clk 0:01:24.2]} 24. Bxf5 {[%clk 0:02:01.2]} 24... Rg7 {[%clk
0:01:23.6]} 25. Rf2 {[%clk 0:01:54.2]} 25... Bxe3 {[%clk 0:01:22.2]} 26. Rg2
{[%clk 0:01:54]} 26... Rag8 {[%clk 0:01:08.7]} 27. Qh4 {[%clk 0:01:35.2]} 27...
Nxf3 {[%clk 0:01:02]} 28. Qf6 {[%clk 0:01:27.1]} 28... Nh4 {[%clk 0:00:46.7]}
29. Rg1 {[%clk 0:00:36.4]} 29... Bxg1 {[%clk 0:00:45.2]} 30. Bh3 {[%clk
0:00:36]} 30... Qd5 {[%clk 0:00:35.3]} 31. Kxg1 {[%clk 0:00:31.6]} 31... Qd1+
{[%clk 0:00:34.4]} 32. Kf2 {[%clk 0:00:30.8]} 32... Ng6 {[%clk 0:00:22.3]} 33.
f5 {[%clk 0:00:23.8]} 33... Qc2+ {[%clk 0:00:20.9]} 34. Kf3 {[%clk 0:00:18.9]}
34... Qd3+ {[%clk 0:00:17.9]} 35. Kf2 {[%clk 0:00:16.6]} 35... Qc2+ {[%clk
0:00:16.5]} 36. Kf3 {[%clk 0:00:16.7]} 36... Qd3+ {[%clk 0:00:14.9]} 37. Kf2
{[%clk 0:00:16.4]} 37... Qc2+ {[%clk 0:00:14.2]} 1/2-1/2

[Event "Betsys MČR v online bleskovém šachu 2021"]
[Site "Chess.com"]
[Date "2021.04.17"]
[Round "10"]
[White "Vesselovsky52"]
[Black "kubaches123"]
[Result "1-0"]
[WhiteElo "2330"]
[BlackElo "2099"]
[TimeControl "180+1"]
[EndTime "10:40:35 PDT"]
[Termination "Uživatel Vesselovsky52 zvítězil po vzdání soupeře"]

1. e4 {[%clk 0:02:59.4]} 1... e5 {[%clk 0:02:56.2]} 2. Nc3 {[%clk 0:02:56.7]}
2... Nf6 {[%clk 0:02:55.6]} 3. Bc4 {[%clk 0:02:54.6]} 3... Nc6 {[%clk
0:02:53.5]} 4. d3 {[%clk 0:02:53.1]} 4... Na5 {[%clk 0:02:53.2]} 5. Nge2 {[%clk
0:02:49.2]} 5... Nxc4 {[%clk 0:02:53.2]} 6. dxc4 {[%clk 0:02:48.6]} 6... Be7
{[%clk 0:02:53.7]} 7. O-O {[%clk 0:02:46.2]} 7... d6 {[%clk 0:02:54.2]} 8. Ng3
{[%clk 0:02:41.7]} 8... O-O {[%clk 0:02:52.3]} 9. f4 {[%clk 0:02:33.3]} 9...
exf4 {[%clk 0:02:48.5]} 10. Bxf4 {[%clk 0:02:32.7]} 10... Be6 {[%clk 0:02:49.4]}
11. b3 {[%clk 0:02:31.2]} 11... Nd7 {[%clk 0:02:30.8]} 12. Nd5 {[%clk
0:02:27.5]} 12... Bxd5 {[%clk 0:02:30]} 13. Qxd5 {[%clk 0:02:14.1]} 13... Bf6
{[%clk 0:02:28.2]} 14. Rae1 {[%clk 0:02:10.3]} 14... Be5 {[%clk 0:02:27]} 15.
Qxb7 {[%clk 0:02:04.3]} 15... Re8 {[%clk 0:01:55.5]} 16. Qd5 {[%clk 0:01:54.5]}
16... Bxf4 {[%clk 0:01:38.4]} 17. Rxf4 {[%clk 0:01:52.8]} 17... Ne5 {[%clk
0:01:38.8]} 18. c5 {[%clk 0:01:47.6]} 18... dxc5 {[%clk 0:00:51.7]} 19. Qxc5
{[%clk 0:01:44.7]} 19... f6 {[%clk 0:00:33.3]} 20. Rff1 {[%clk 0:01:39.5]} 20...
Qe7 {[%clk 0:00:18.1]} 21. Qd5+ {[%clk 0:01:32.2]} 21... Qf7 {[%clk 0:00:17.6]}
22. Nf5 {[%clk 0:01:30.5]} 22... Rad8 {[%clk 0:00:14.2]} 23. Qxf7+ {[%clk
0:01:27.3]} 23... Kxf7 {[%clk 0:00:15.1]} 24. Rd1 {[%clk 0:01:25.1]} 24... g6
{[%clk 0:00:12.7]} 25. Ne3 {[%clk 0:01:22]} 25... c6 {[%clk 0:00:12.5]} 26. h3
{[%clk 0:01:20]} 26... Ke6 {[%clk 0:00:12.9]} 27. Kf2 {[%clk 0:01:18.6]} 27...
a5 {[%clk 0:00:12.7]} 28. a4 {[%clk 0:01:16.6]} 28... h5 {[%clk 0:00:10.6]} 29.
Ke2 {[%clk 0:01:15.4]} 29... Rd7 {[%clk 0:00:08.1]} 30. Rxd7 {[%clk 0:01:13.5]}
30... Nxd7 {[%clk 0:00:09]} 31. Nc4 {[%clk 0:01:11.7]} 31... Ra8 {[%clk
0:00:07.5]} 32. Rd1 {[%clk 0:01:10.7]} 32... Ne5 {[%clk 0:00:07.1]} 33. Nxe5
{[%clk 0:01:00.9]} 33... Kxe5 {[%clk 0:00:08]} 34. Ke3 {[%clk 0:01:00.9]} 34...
Rc8 {[%clk 0:00:05.9]} 35. Rd7 {[%clk 0:00:58.5]} 35... f5 {[%clk 0:00:05.4]}
36. exf5 {[%clk 0:00:55.8]} 36... Kxf5 {[%clk 0:00:06.3]} 37. Rf7+ {[%clk
0:00:53.6]} 37... Ke6 {[%clk 0:00:05.6]} 38. Ra7 {[%clk 0:00:52]} 38... c5
{[%clk 0:00:03.4]} 39. Rxa5 {[%clk 0:00:51.2]} 39... c4 {[%clk 0:00:04.3]} 40.
b4 {[%clk 0:00:43.3]} 40... c3 {[%clk 0:00:04]} 41. b5 {[%clk 0:00:42.2]} 41...
Rd8 {[%clk 0:00:02.8]} 42. b6 {[%clk 0:00:39.7]} 1-0

[Event "Betsys MČR v online bleskovém šachu 2021"]
[Site "Chess.com"]
[Date "2021.04.17"]
[Round "10"]
[White "kol340"]
[Black "phil3"]
[Result "1-0"]
[WhiteElo "1881"]
[BlackElo "2107"]
[TimeControl "180+1"]
[EndTime "10:40:35 PDT"]
[Termination "Uživatel kol340 zvítězil po vzdání soupeře"]

1. d4 {[%clk 0:03:00.6]} 1... d5 {[%clk 0:02:59.7]} 2. Nf3 {[%clk 0:03:00.8]}
2... Nf6 {[%clk 0:02:59.5]} 3. Bf4 {[%clk 0:03:01.3]} 3... c5 {[%clk 0:02:59]}
4. e3 {[%clk 0:03:01.7]} 4... Nc6 {[%clk 0:02:59.2]} 5. c3 {[%clk 0:03:01.6]}
5... Qb6 {[%clk 0:02:59.3]} 6. Qb3 {[%clk 0:03:00.5]} 6... c4 {[%clk 0:02:58.9]}
7. Qxb6 {[%clk 0:03:00.6]} 7... axb6 {[%clk 0:02:59.2]} 8. Be2 {[%clk
0:03:01.1]} 8... b5 {[%clk 0:02:59.3]} 9. Nbd2 {[%clk 0:03:01.5]} 9... b4 {[%clk
0:02:59.1]} 10. O-O {[%clk 0:03:01.3]} 10... bxc3 {[%clk 0:02:58.9]} 11. bxc3
{[%clk 0:03:02.2]} 11... Bf5 {[%clk 0:02:57.9]} 12. Ne5 {[%clk 0:03:00.9]} 12...
e6 {[%clk 0:02:57.4]} 13. f3 {[%clk 0:02:57]} 13... Ba3 {[%clk 0:02:53.7]} 14.
g4 {[%clk 0:02:54.9]} 14... Bc2 {[%clk 0:02:42.8]} 15. g5 {[%clk 0:02:44.7]}
15... Nh5 {[%clk 0:02:39.4]} 16. Nxc6 {[%clk 0:02:25.7]} 16... bxc6 {[%clk
0:02:38.4]} 17. Be5 {[%clk 0:02:26.1]} 17... f6 {[%clk 0:02:36]} 18. f4 {[%clk
0:02:25.8]} 18... fxe5 {[%clk 0:02:31.9]} 19. Bxh5+ {[%clk 0:02:24.1]} 19... g6
{[%clk 0:02:32.1]} 20. Bg4 {[%clk 0:02:24.5]} 20... Bb2 {[%clk 0:02:23.8]} 21.
Bxe6 {[%clk 0:02:13.2]} 21... Bxa1 {[%clk 0:02:19.5]} 22. Rxa1 {[%clk
0:02:12.4]} 22... exd4 {[%clk 0:02:19.1]} 23. exd4 {[%clk 0:02:10.4]} 23... Rf8
{[%clk 0:02:18.5]} 24. Nf3 {[%clk 0:02:02.9]} 24... Rxf4 {[%clk 0:02:11.2]} 25.
Ne5 {[%clk 0:02:02.6]} 25... Be4 {[%clk 0:01:20.3]} 26. Bd7+ {[%clk 0:01:59.4]}
26... Kf8 {[%clk 0:01:14.1]} 27. Bxc6 {[%clk 0:01:58.9]} 27... Ra3 {[%clk
0:01:10.7]} 28. Nd7+ {[%clk 0:01:32.9]} 28... Kg7 {[%clk 0:00:59.2]} 29. Nf6
{[%clk 0:01:33.8]} 29... Rxc3 {[%clk 0:00:52.3]} 30. Bxd5 {[%clk 0:01:33.6]}
30... Bxd5 {[%clk 0:00:39.5]} 31. Nxd5 {[%clk 0:01:32.6]} 31... Rg4+ {[%clk
0:00:38.6]} 32. Kf2 {[%clk 0:01:33]} 32... Rc2+ {[%clk 0:00:20.8]} 33. Kf3
{[%clk 0:01:32.4]} 33... Rxd4 {[%clk 0:00:19.3]} 34. Nb4 {[%clk 0:01:23.2]}
34... Rc3+ {[%clk 0:00:18.3]} 35. Ke2 {[%clk 0:01:21.5]} 35... Ra3 {[%clk
0:00:16.7]} 36. Nc2 {[%clk 0:01:20.1]} 36... Re4+ {[%clk 0:00:15]} 37. Kd2
{[%clk 0:01:18.8]} 37... Rd3+ {[%clk 0:00:14.5]} 38. Kc1 {[%clk 0:01:19.1]}
38... Rh4 {[%clk 0:00:14]} 39. Kb2 {[%clk 0:01:17.8]} 39... Rxh2 {[%clk
0:00:13.9]} 40. a4 {[%clk 0:01:18.1]} 40... Rdd2 {[%clk 0:00:13.6]} 41. Rc1
{[%clk 0:01:18.1]} 41... Rd7 {[%clk 0:00:09.9]} 42. a5 {[%clk 0:01:19]} 42...
Ra7 {[%clk 0:00:09.7]} 43. Ra1 {[%clk 0:01:18.5]} 43... Rb7+ {[%clk 0:00:09.7]}
44. Kc3 {[%clk 0:01:18.5]} 44... Rb3+ {[%clk 0:00:09.2]} 45. Kxc4 {[%clk
0:01:15.2]} 45... Rb8 {[%clk 0:00:09.8]} 46. Nb4 {[%clk 0:01:14.7]} 46... Rc8+
{[%clk 0:00:09.5]} 47. Kb5 {[%clk 0:01:14.7]} 47... Rg2 {[%clk 0:00:08.8]} 48.
a6 {[%clk 0:01:04.9]} 48... Rxg5+ {[%clk 0:00:08.8]} 49. Kb6 {[%clk 0:01:05.3]}
49... Rb8+ {[%clk 0:00:08.7]} 50. Kc7 {[%clk 0:01:05.1]} 50... Rgb5 {[%clk
0:00:06.4]} 51. a7 {[%clk 0:01:06]} 51... R8b7+ {[%clk 0:00:05.2]} 52. Kc6
{[%clk 0:01:06.2]} 52... Rxa7 {[%clk 0:00:05.7]} 53. Rxa7+ {[%clk 0:01:04.5]}
53... Kf6 {[%clk 0:00:06.2]} 54. Kxb5 {[%clk 0:01:04.4]} 1-0

[Event "Betsys MČR v online bleskovém šachu 2021"]
[Site "Chess.com"]
[Date "2021.04.17"]
[Round "10"]
[White "JJ95"]
[Black "Sandokanom"]
[Result "1/2-1/2"]
[WhiteElo "2011"]
[BlackElo "1766"]
[TimeControl "180+1"]
[EndTime "10:40:35 PDT"]
[Termination "Remíza – nedostatek materiálu"]

1. e4 {[%clk 0:03:00.9]} 1... c5 {[%clk 0:02:59.5]} 2. c3 {[%clk 0:03:00.7]}
2... e6 {[%clk 0:02:59.1]} 3. d4 {[%clk 0:02:59.9]} 3... cxd4 {[%clk 0:02:58.4]}
4. cxd4 {[%clk 0:02:59.7]} 4... Nf6 {[%clk 0:02:59.3]} 5. e5 {[%clk 0:02:59.5]}
5... Nd5 {[%clk 0:02:58.9]} 6. Bc4 {[%clk 0:02:58.9]} 6... Nb6 {[%clk
0:02:54.4]} 7. Bb3 {[%clk 0:02:58.7]} 7... Nc6 {[%clk 0:02:54.7]} 8. Nf3 {[%clk
0:02:57.7]} 8... Bb4+ {[%clk 0:02:54.2]} 9. Bd2 {[%clk 0:02:58]} 9... O-O {[%clk
0:02:51.2]} 10. O-O {[%clk 0:02:55.4]} 10... d5 {[%clk 0:02:45.1]} 11. a3 {[%clk
0:02:52]} 11... Be7 {[%clk 0:02:38.8]} 12. Be3 {[%clk 0:02:46.1]} 12... a5
{[%clk 0:02:24.8]} 13. Nc3 {[%clk 0:02:44.8]} 13... Bd7 {[%clk 0:02:24.3]} 14.
Bc2 {[%clk 0:02:38.2]} 14... Nc4 {[%clk 0:02:23.5]} 15. Qd3 {[%clk 0:02:34.1]}
15... g6 {[%clk 0:02:22.9]} 16. Rab1 {[%clk 0:02:25.3]} 16... Nxe3 {[%clk
0:02:15.1]} 17. fxe3 {[%clk 0:02:22.7]} 17... f5 {[%clk 0:02:07.7]} 18. Rbc1
{[%clk 0:01:58.5]} 18... Rc8 {[%clk 0:02:03]} 19. Nb5 {[%clk 0:01:55]} 19... Qb6
{[%clk 0:01:38]} 20. Bb1 {[%clk 0:01:48.4]} 20... Nxe5 {[%clk 0:01:03.3]} 21.
Nxe5 {[%clk 0:01:30.9]} 21... Bxb5 {[%clk 0:01:03.1]} 22. Qb3 {[%clk 0:01:27.6]}
22... a4 {[%clk 0:00:58.1]} 23. Qd1 {[%clk 0:01:00.1]} 23... Rxc1 {[%clk
0:00:48.9]} 24. Qxc1 {[%clk 0:00:58.2]} 24... Bxf1 {[%clk 0:00:48.3]} 25. Nd7
{[%clk 0:00:44.8]} 25... Qc6 {[%clk 0:00:43.7]} 26. Qxc6 {[%clk 0:00:41.7]}
26... bxc6 {[%clk 0:00:44.2]} 27. Nxf8 {[%clk 0:00:42.2]} 27... Bxf8 {[%clk
0:00:43]} 28. Kxf1 {[%clk 0:00:42]} 28... Kf7 {[%clk 0:00:42.5]} 29. Bc2 {[%clk
0:00:42.2]} 29... c5 {[%clk 0:00:40.1]} 30. dxc5 {[%clk 0:00:31.6]} 30... Bxc5
{[%clk 0:00:39.9]} 31. Ke2 {[%clk 0:00:31.4]} 31... d4 {[%clk 0:00:32.8]} 32.
exd4 {[%clk 0:00:28.2]} 32... Bxd4 {[%clk 0:00:32.9]} 33. Bxa4 {[%clk
0:00:28.3]} 33... Bxb2 {[%clk 0:00:32.6]} 34. Bb3 {[%clk 0:00:25.4]} 34... Bxa3
{[%clk 0:00:32.4]} 35. g3 {[%clk 0:00:25.5]} 35... Bd6 {[%clk 0:00:32.3]} 36.
Ke3 {[%clk 0:00:25.8]} 36... Kf6 {[%clk 0:00:32.6]} 37. Kf3 {[%clk 0:00:25.9]}
37... h5 {[%clk 0:00:32.7]} 38. h4 {[%clk 0:00:25.6]} 38... g5 {[%clk
0:00:32.1]} 39. hxg5+ {[%clk 0:00:25.3]} 39... Kxg5 {[%clk 0:00:32]} 40. Bc2
{[%clk 0:00:24.3]} 40... h4 {[%clk 0:00:29.8]} 41. gxh4+ {[%clk 0:00:24.3]}
41... Kxh4 {[%clk 0:00:30.1]} 42. Bd3 {[%clk 0:00:21.8]} 42... Kg5 {[%clk
0:00:29.1]} 43. Bc2 {[%clk 0:00:21.7]} 43... e5 {[%clk 0:00:28]} 44. Bd3 {[%clk
0:00:21.6]} 44... e4+ {[%clk 0:00:26.1]} 45. Bxe4 {[%clk 0:00:21.8]} 45... fxe4+
{[%clk 0:00:27]} 46. Kxe4 {[%clk 0:00:22.7]} 1/2-1/2

[Event "Betsys MČR v online bleskovém šachu 2021"]
[Site "Chess.com"]
[Date "2021.04.17"]
[Round "10"]
[White "berny643"]
[Black "Ladislav1969"]
[Result "1-0"]
[WhiteElo "2576"]
[BlackElo "2320"]
[TimeControl "180+1"]
[EndTime "10:40:37 PDT"]
[Termination "Uživatel berny643 zvítězil po vzdání soupeře"]

1. d4 {[%clk 0:03:00.9]} 1... Nf6 {[%clk 0:03:00.1]} 2. c4 {[%clk 0:03:00.3]}
2... g6 {[%clk 0:03:00.5]} 3. Nc3 {[%clk 0:03:00.9]} 3... d5 {[%clk 0:03:01.1]}
4. Bg5 {[%clk 0:02:59.6]} 4... Ne4 {[%clk 0:02:58.7]} 5. Bh4 {[%clk 0:03:00]}
5... Nxc3 {[%clk 0:02:57.5]} 6. bxc3 {[%clk 0:03:00.9]} 6... dxc4 {[%clk
0:02:53.7]} 7. e3 {[%clk 0:03:00.8]} 7... Qd5 {[%clk 0:02:42.8]} 8. Nf3 {[%clk
0:02:59.7]} 8... Bg4 {[%clk 0:02:36.2]} 9. Be2 {[%clk 0:02:55.1]} 9... Nc6
{[%clk 0:02:30.7]} 10. O-O {[%clk 0:02:52.9]} 10... Bg7 {[%clk 0:02:25.8]} 11.
h3 {[%clk 0:02:51.2]} 11... Bf5 {[%clk 0:02:22.2]} 12. Nd2 {[%clk 0:02:43]}
12... Bd3 {[%clk 0:02:22]} 13. Bxd3 {[%clk 0:02:39.8]} 13... cxd3 {[%clk
0:02:21.7]} 14. Qb1 {[%clk 0:02:39.4]} 14... Na5 {[%clk 0:02:16.3]} 15. Qxd3
{[%clk 0:02:36.7]} 15... Bf6 {[%clk 0:02:04.4]} 16. Bxf6 {[%clk 0:02:31.6]}
16... exf6 {[%clk 0:02:03.8]} 17. Ne4 {[%clk 0:02:32.2]} 17... Ke7 {[%clk
0:01:48.5]} 18. Rab1 {[%clk 0:02:24]} 18... Nc4 {[%clk 0:01:40.5]} 19. Nc5
{[%clk 0:02:08.4]} 19... b6 {[%clk 0:01:35.9]} 20. e4 {[%clk 0:02:08.3]} 20...
Qc6 {[%clk 0:01:27.3]} 21. Qxc4 {[%clk 0:02:03.8]} 21... bxc5 {[%clk 0:01:27.5]}
22. Rb5 {[%clk 0:01:53.4]} 22... Rhc8 {[%clk 0:01:17.2]} 23. d5 {[%clk
0:01:43.3]} 23... Qd6 {[%clk 0:01:13.7]} 24. Rxc5 {[%clk 0:01:43.1]} 24... c6
{[%clk 0:01:06.1]} 25. Rb1 {[%clk 0:01:38.5]} 25... Rc7 {[%clk 0:01:06]} 26. Qd4
{[%clk 0:01:27.5]} 26... Rac8 {[%clk 0:01:02.9]} 27. dxc6 {[%clk 0:01:18.4]}
27... Qxd4 {[%clk 0:00:33.2]} 28. cxd4 {[%clk 0:01:17.8]} 28... Kd6 {[%clk
0:00:33.5]} 29. Rbc1 {[%clk 0:01:16.8]} 29... Rxc6 {[%clk 0:00:32.9]} 30. Rxc6+
{[%clk 0:01:13.9]} 30... Rxc6 {[%clk 0:00:33.1]} 31. Rxc6+ {[%clk 0:01:14.3]}
31... Kxc6 {[%clk 0:00:33.5]} 32. Kf1 {[%clk 0:01:14.2]} 32... Kb5 {[%clk
0:00:33.5]} 33. Ke2 {[%clk 0:01:14.1]} 33... Kc4 {[%clk 0:00:34.1]} 34. d5
{[%clk 0:01:14]} 34... Kc5 {[%clk 0:00:33.7]} 35. Kd3 {[%clk 0:01:11.4]} 35...
f5 {[%clk 0:00:34]} 36. f3 {[%clk 0:01:10.4]} 36... f4 {[%clk 0:00:32.3]} 37.
Kc3 {[%clk 0:01:09.3]} 37... f5 {[%clk 0:00:30.7]} 38. Kd3 {[%clk 0:01:07.4]}
38... g5 {[%clk 0:00:27.4]} 39. Kc3 {[%clk 0:01:04.9]} 39... fxe4 {[%clk
0:00:26.9]} 40. fxe4 {[%clk 0:01:04.4]} 40... h5 {[%clk 0:00:27.4]} 41. Kd3
{[%clk 0:01:04.7]} 41... g4 {[%clk 0:00:27.7]} 42. hxg4 {[%clk 0:01:04]} 42...
hxg4 {[%clk 0:00:28]} 43. Kd2 {[%clk 0:01:02.7]} 43... Kd6 {[%clk 0:00:26.8]}
44. Kd3 {[%clk 0:01:00]} 44... Ke5 {[%clk 0:00:25.3]} 45. Ke2 {[%clk 0:00:59]}
45... a5 {[%clk 0:00:23.6]} 46. Kd3 {[%clk 0:00:56]} 46... a4 {[%clk 0:00:20.1]}
47. a3 {[%clk 0:00:55.5]} 47... Kd6 {[%clk 0:00:18.4]} 48. Kd4 {[%clk
0:00:55.4]} 48... Ke7 {[%clk 0:00:15]} 49. e5 {[%clk 0:00:55.2]} 49... Kd7
{[%clk 0:00:12]} 50. Ke4 {[%clk 0:00:53.9]} 50... f3 {[%clk 0:00:12.3]} 51. gxf3
{[%clk 0:00:54.4]} 51... g3 {[%clk 0:00:12.3]} 52. Ke3 {[%clk 0:00:54.6]} 1-0

[Event "Betsys MČR v online bleskovém šachu 2021"]
[Site "Chess.com"]
[Date "2021.04.17"]
[Round "10"]
[White "youhy"]
[Black "EXTREME_STRATEGY007"]
[Result "0-1"]
[WhiteElo "1751"]
[BlackElo "1341"]
[TimeControl "180+1"]
[EndTime "10:40:37 PDT"]
[Termination "Uživatel EXTREME_STRATEGY007 zvítězil na čas"]

1. d4 {[%clk 0:03:00.9]} 1... Nf6 {[%clk 0:02:53.6]} 2. Nf3 {[%clk 0:02:58.9]}
2... d5 {[%clk 0:02:49.6]} 3. c4 {[%clk 0:02:57.7]} 3... c6 {[%clk 0:02:46.8]}
4. g3 {[%clk 0:02:57.7]} 4... Bf5 {[%clk 0:02:43.5]} 5. Bg2 {[%clk 0:02:56.8]}
5... e6 {[%clk 0:02:42.9]} 6. O-O {[%clk 0:02:55.4]} 6... Nbd7 {[%clk
0:02:41.9]} 7. Nbd2 {[%clk 0:02:55.4]} 7... Bd6 {[%clk 0:02:37.7]} 8. Nh4 {[%clk
0:02:49.9]} 8... Bg6 {[%clk 0:02:35]} 9. b3 {[%clk 0:02:45.2]} 9... Qe7 {[%clk
0:02:33.4]} 10. Bb2 {[%clk 0:02:35.9]} 10... O-O-O {[%clk 0:02:12.7]} 11. c5
{[%clk 0:02:26.4]} 11... Bc7 {[%clk 0:02:08.1]} 12. b4 {[%clk 0:02:26.2]} 12...
Nh5 {[%clk 0:01:43.8]} 13. Qa4 {[%clk 0:02:08.4]} 13... a6 {[%clk 0:01:42.2]}
14. Qb3 {[%clk 0:01:51.5]} 14... f5 {[%clk 0:01:02.6]} 15. a4 {[%clk 0:01:45]}
15... Bf7 {[%clk 0:00:58.3]} 16. b5 {[%clk 0:01:40]} 16... g5 {[%clk 0:00:54.9]}
17. bxc6 {[%clk 0:01:20.4]} 17... bxc6 {[%clk 0:00:52.5]} 18. Nhf3 {[%clk
0:01:15.1]} 18... f4 {[%clk 0:00:48.5]} 19. Bc3 {[%clk 0:01:00.8]} 19... g4
{[%clk 0:00:45.5]} 20. Nh4 {[%clk 0:00:31.8]} 20... fxg3 {[%clk 0:00:42.5]} 21.
hxg3 {[%clk 0:00:30.4]} 21... Nxg3 {[%clk 0:00:39.1]} 22. Rfb1 {[%clk
0:00:17.2]} 22... Nb8 {[%clk 0:00:32.5]} 23. Qb7+ {[%clk 0:00:08.3]} 23... Kd7
{[%clk 0:00:31.8]} 24. fxg3 {[%clk 0:00:08.3]} 24... Ke8 {[%clk 0:00:19.2]} 25.
Qa7 {[%clk 0:00:06.4]} 25... Bxg3 {[%clk 0:00:15.7]} 26. Qxe7+ {[%clk
0:00:05.4]} 26... Kxe7 {[%clk 0:00:15.5]} 27. Nf5+ {[%clk 0:00:03.4]} 27... exf5
{[%clk 0:00:13.5]} 28. Rb7+ {[%clk 0:00:04.2]} 28... Rd7 {[%clk 0:00:11.2]} 29.
Rxd7+ {[%clk 0:00:03.6]} 29... Kxd7 {[%clk 0:00:10.7]} 30. Rf1 {[%clk
0:00:03.7]} 30... f4 {[%clk 0:00:10.5]} 0-1

[Event "Betsys MČR v online bleskovém šachu 2021"]
[Site "Chess.com"]
[Date "2021.04.17"]
[Round "10"]
[White "TommyLud"]
[Black "jhdghaka"]
[Result "1-0"]
[WhiteElo "2178"]
[BlackElo "1887"]
[TimeControl "180+1"]
[EndTime "10:40:39 PDT"]
[Termination "Uživatel TommyLud zvítězil matem"]

1. d4 {[%clk 0:03:00.9]} 1... Nf6 {[%clk 0:02:58.8]} 2. c4 {[%clk 0:03:01]} 2...
e6 {[%clk 0:02:58.1]} 3. Nf3 {[%clk 0:03:00.6]} 3... b6 {[%clk 0:02:57]} 4. g3
{[%clk 0:03:00.3]} 4... Bb7 {[%clk 0:02:56.2]} 5. Bg2 {[%clk 0:03:00.4]} 5...
Be7 {[%clk 0:02:55.2]} 6. O-O {[%clk 0:03:00.6]} 6... O-O {[%clk 0:02:54.4]} 7.
Nc3 {[%clk 0:03:00.4]} 7... d6 {[%clk 0:02:54.4]} 8. Qc2 {[%clk 0:02:54.6]} 8...
Nbd7 {[%clk 0:02:53.7]} 9. e4 {[%clk 0:02:54.5]} 9... e5 {[%clk 0:02:54]} 10. d5
{[%clk 0:02:54]} 10... a5 {[%clk 0:02:53]} 11. h3 {[%clk 0:02:42.7]} 11... Ne8
{[%clk 0:02:47.1]} 12. Be3 {[%clk 0:02:37]} 12... Nc5 {[%clk 0:02:33.6]} 13. b3
{[%clk 0:02:31]} 13... Bc8 {[%clk 0:02:18.4]} 14. Nd2 {[%clk 0:02:15.4]} 14...
f5 {[%clk 0:02:16]} 15. exf5 {[%clk 0:02:15]} 15... Bxf5 {[%clk 0:02:15.6]} 16.
Nde4 {[%clk 0:02:14.8]} 16... Nxe4 {[%clk 0:02:14.8]} 17. Nxe4 {[%clk
0:02:14.2]} 17... Nf6 {[%clk 0:02:08.7]} 18. Nxf6+ {[%clk 0:02:04]} 18... Rxf6
{[%clk 0:02:09.6]} 19. Qd2 {[%clk 0:02:03.7]} 19... Qc8 {[%clk 0:01:56.5]} 20.
g4 {[%clk 0:01:58.3]} 20... Bd7 {[%clk 0:01:56.2]} 21. Rae1 {[%clk 0:01:45.6]}
21... Rf7 {[%clk 0:01:43.2]} 22. f4 {[%clk 0:01:42]} 22... Bh4 {[%clk
0:01:40.4]} 23. Re2 {[%clk 0:01:41.2]} 23... h5 {[%clk 0:01:08.7]} 24. f5 {[%clk
0:01:29.7]} 24... hxg4 {[%clk 0:01:05.7]} 25. hxg4 {[%clk 0:01:29.6]} 25... a4
{[%clk 0:00:53.7]} 26. Be4 {[%clk 0:01:13.8]} 26... axb3 {[%clk 0:00:52.6]} 27.
axb3 {[%clk 0:01:13.7]} 27... g6 {[%clk 0:00:47.5]} 28. Bg5 {[%clk 0:00:38.2]}
28... Bxg5 {[%clk 0:00:12.2]} 29. Qxg5 {[%clk 0:00:38]} 29... Rg7 {[%clk
0:00:12.2]} 30. f6 {[%clk 0:00:37.8]} 30... Qd8 {[%clk 0:00:08.4]} 31. Bxg6
{[%clk 0:00:21.7]} 31... Be8 {[%clk 0:00:04.2]} 32. f7+ {[%clk 0:00:21.3]} 32...
Bxf7 {[%clk 0:00:03.9]} 33. Bxf7+ {[%clk 0:00:21.5]} 33... Kh8 {[%clk 0:00:03]}
34. Rh2+ {[%clk 0:00:19.6]} 34... Rh7 {[%clk 0:00:02.7]} 35. Rxh7+ {[%clk
0:00:18.8]} 35... Kxh7 {[%clk 0:00:03.6]} 36. Qg6+ {[%clk 0:00:19.1]} 36... Kh8
{[%clk 0:00:03.9]} 37. Qh6# {[%clk 0:00:19.6]} 1-0